fUST/lending_fUST_20250626
["ID","MTS","AMOUNT","RATE_DAILY","PERIOD"]
[367631833,1750882246666,-460.0,0.00017534,2]
[367631835,1750882246675,-460.0,0.00017534,2]
[367631837,1750882246685,-460.0,0.00017534,2]
[367631839,1750882246694,-460.0,0.00017534,2]
[367631841,1750882246704,-684.68,0.00017534,2]
[367631843,1750882246713,-460.0,0.00017534,2]
[367631845,1750882246724,-460.0,0.00017534,2]
[367631847,1750882246733,-460.0,0.00017534,2]
[367631849,1750882246742,-554.04,0.00017534,2]
[367631851,1750882246751,-1916.09,0.00017534,2]
[367631853,1750882246760,-356.84,0.00017534,2]
[367631855,1750882246770,-460.0,0.00017534,2]
[367631857,1750882246778,-460.0,0.00017534,2]
[367631858,1750882246788,-460.0,0.00017534,2]
[367631860,1750882246798,-3498.74,0.00017534,2]
[367631862,1750882246808,-1291.19,0.00017534,2]
[367631864,1750882246819,-338.12930248,0.00017534,2]
[367631866,1750882246828,-460.0,0.00017534,2]
[367631868,1750882246838,-2067.75,0.00017534,2]
[367631870,1750882246847,-811.56,0.00017534,2]
[367631872,1750882246857,-460.0,0.00017534,2]
[367631874,1750882246866,-460.0,0.00017534,2]
[367631876,1750882246875,-2990.44,0.00017534,2]
[367631878,1750882246885,-460.0,0.00017534,2]
[367631880,1750882246894,-460.0,0.00017534,2]
[367631882,1750882246904,-151.0,0.00017534,2]
[367631884,1750882246913,-460.0,0.00017534,2]
[367631887,1750882246923,-468.95,0.00017534,2]
[367631889,1750882246934,-460.0,0.00017534,2]
[367631890,1750882246944,-498.17,0.00017534,2]
[367631892,1750882246960,-460.0,0.00017534,2]
[367631894,1750882246970,-968.9,0.00017534,2]
[367631896,1750882246980,-460.0,0.00017534,2]
[367631898,1750882246991,-641.34,0.00017534,2]
[367631900,1750882247001,-196.56,0.00017534,2]
[367631902,1750882247011,-3230.92,0.00017534,2]
[367631904,1750882247020,-460.0,0.00017534,2]
[367631906,1750882247030,-460.0,0.00017534,2]
[367631908,1750882247039,-460.0,0.00017534,2]
[367631910,1750882247048,-990.9,0.00017534,2]
[367631912,1750882247057,-522.98,0.00017534,2]
[367631914,1750882247067,-460.0,0.00017534,2]
[367631916,1750882247076,-460.0,0.00017534,2]
[367631918,1750882247085,-780.85,0.00017534,2]
[367631920,1750882247094,-460.0,0.00017534,2]
[367631922,1750882247103,-1462.66,0.00017534,2]
[367631924,1750882247112,-2035.57,0.00017534,2]
[367631926,1750882247121,-460.0,0.00017534,2]
[367631928,1750882247130,-460.0,0.00017534,2]
[367631930,1750882247139,-1890.42,0.00017534,2]
[367631932,1750882247148,-1607.96,0.00017534,2]
[367631934,1750882247159,-634.23,0.00017534,2]
[367631936,1750882247168,-151.0,0.00017534,2]
[367631938,1750882247177,-460.0,0.00017534,2]
[367631940,1750882247186,-460.0,0.00017534,2]
[367631942,1750882247195,-1280.77,0.00017534,2]
[367631944,1750882247206,-659.25,0.00017534,2]
[367631946,1750882247215,-460.53,0.00017534,2]
[367631948,1750882247224,-2428.87,0.00017534,2]
[367631950,1750882247233,-1185.0,0.00017535,2]
[367631952,1750882247242,-1418.67583008,0.00017571,2]
[367631954,1750882247251,-290.0,0.00017588,2]
[367631956,1750882247260,-151.0,0.0001759,2]
[367631958,1750882247269,-151.0,0.0001759,2]
[367631960,1750882247279,-151.0,0.0001759,2]
[367631962,1750882247288,-151.0,0.0001759,2]
[367631964,1750882247297,-151.0,0.0001759,2]
[367631966,1750882247307,-961.64916367,0.00017594,2]
[367631968,1750882247316,-500.0,0.00017614,2]
[367631970,1750882247325,-502.55035468,0.00017614,2]
[367631972,1750882247335,-329.65870009,0.00017637,2]
[367631974,1750882247344,-2983.73685838,0.00017728,2]
[367631976,1750882247353,-500.0,0.00017807,2]
[367631978,1750882247362,-500.0,0.00017807,2]
[367631980,1750882247371,-500.0,0.00017807,2]
[367631981,1750882247380,-500.0,0.00017807,2]
[367631983,1750882247389,-500.0,0.00017807,2]
[367631985,1750882247398,-500.0,0.00017807,2]
[367631987,1750882247408,-196.3989813,0.00017807,2]
[367631989,1750882247417,-500.0,0.00017807,2]
[367631991,1750882247426,-500.0,0.00017807,2]
[367631993,1750882247435,-500.0,0.00017807,2]
[367631995,1750882247444,-500.0,0.00017807,2]
[367631997,1750882247454,-500.0,0.00017807,2]
[367631999,1750882247463,-500.0,0.00017807,2]
[367632001,1750882247472,-500.0,0.00017807,2]
[367632003,1750882247481,-500.0,0.00017807,2]
[367632005,1750882247489,-500.0,0.00017807,2]
[367632007,1750882247498,-500.39912142,0.00017807,2]
[367632009,1750882247507,-500.0,0.00017807,2]
[367632011,1750882247516,-151.0,0.00017808,2]
[367632012,1750882247526,-460.0,0.00017808,2]
[367632014,1750882247535,-460.0,0.00017808,2]
[367632016,1750882247544,-498.77,0.00017808,2]
[367632018,1750882247552,-151.0,0.00017808,2]
[367632020,1750882247562,-151.0,0.00017808,2]
[367632022,1750882247571,-460.0,0.00017808,2]
[367632024,1750882247580,-269.632484,0.00017808,2]
[367632026,1750882247590,-467.78,0.00017808,2]
[367632028,1750882247599,-151.0,0.00017808,2]
[367632030,1750882247608,-226.515978,0.00017808,2]
[367632032,1750882247617,-151.0,0.00017808,2]
[367632034,1750882247627,-151.0,0.00017808,2]
[367632036,1750882247636,-151.0,0.00017808,2]
[367632037,1750882247645,-460.0,0.00017808,2]
[367632039,1750882247654,-233.15,0.00017808,2]
[367632041,1750882247663,-854.92,0.00017808,2]
[367632043,1750882247672,-151.0,0.00017808,2]
[367632045,1750882247681,-151.0,0.00017808,2]
[367632047,1750882247690,-151.0,0.00017808,2]
[367632049,1750882247699,-460.0,0.00017808,2]
[367632051,1750882247709,-460.0,0.00017808,2]
[367632053,1750882247719,-502.0,0.00017808,2]
[367632055,1750882247732,-784.28,0.00017808,2]
[367632057,1750882247741,-1342.04,0.00017808,2]
[367632059,1750882247750,-460.0,0.00017808,2]
[367632061,1750882247760,-460.0,0.00017808,2]
[367632063,1750882247771,-474.78,0.00017808,2]
[367632065,1750882247780,-465.03193966,0.00017808,2]
[367632067,1750882247790,-1652.25,0.00017808,2]
[367632069,1750882247799,-189.56,0.00017808,2]
[367632071,1750882247808,-460.0,0.00017808,2]
[367632073,1750882247818,-460.0,0.00017808,2]
[367632075,1750882247827,-460.0,0.00017808,2]
[367632077,1750882247836,-684.68,0.00017808,2]
[367632079,1750882247845,-460.0,0.00017808,2]
[367632081,1750882247855,-460.0,0.00017808,2]
[367632082,1750882247864,-460.0,0.00017808,2]
[367632083,1750882247874,-554.04,0.00017808,2]
[367632084,1750882247884,-1916.09,0.00017808,2]
[367632085,1750882247893,-435.69,0.00017808,2]
[367632086,1750882247902,-460.0,0.00017808,2]
[367632087,1750882247911,-460.0,0.00017808,2]
[367632088,1750882247920,-3498.74,0.00017808,2]
[367632089,1750882247930,-151.0,0.00017808,2]
[367632090,1750882247939,-151.0,0.00017808,2]
[367632092,1750882247948,-1291.19,0.00017808,2]
[367632094,1750882247957,-157.989329,0.00017808,2]
[367632096,1750882247967,-460.0,0.00017808,2]
[367632098,1750882247976,-2067.75,0.00017808,2]
[367632099,1750882247985,-811.56,0.00017808,2]
[367632102,1750882247995,-460.0,0.00017808,2]
[367632104,1750882248005,-460.0,0.00017808,2]
[367632105,1750882248014,-2990.44,0.00017808,2]
[367632108,1750882248024,-460.0,0.00017808,2]
[367632110,1750882248033,-460.0,0.00017808,2]
[367632111,1750882248042,-468.95,0.00017808,2]
[367632114,1750882248052,-460.0,0.00017808,2]
[367632116,1750882248061,-498.17,0.00017808,2]
[367632118,1750882248071,-460.0,0.00017808,2]
[367632120,1750882248080,-968.9,0.00017808,2]
[367632122,1750882248089,-460.0,0.00017808,2]
[367632124,1750882248098,-641.34,0.00017808,2]
[367632126,1750882248107,-3230.92,0.00017808,2]
[367632128,1750882248117,-460.0,0.00017808,2]
[367632130,1750882248127,-460.0,0.00017808,2]
[367632132,1750882248136,-460.0,0.00017808,2]
[367632134,1750882248146,-990.9,0.00017808,2]
[367632136,1750882248156,-522.98,0.00017808,2]
[367632138,1750882248165,-151.0,0.00017808,2]
[367632140,1750882248175,-460.0,0.00017808,2]
[367632142,1750882248185,-460.0,0.00017808,2]
[367632144,1750882248195,-151.0,0.00017808,2]
[367632146,1750882248204,-780.85,0.00017808,2]
[367632148,1750882248213,-1462.66,0.00017808,2]
[367632150,1750882248222,-2035.57,0.00017808,2]
[367632152,1750882248231,-460.0,0.00017808,2]
[367632154,1750882248240,-1890.42,0.00017808,2]
[367632156,1750882248249,-1607.96,0.00017808,2]
[367632158,1750882248258,-151.0,0.00017808,2]
[367632160,1750882248267,-634.23,0.00017808,2]
[367632162,1750882248277,-418.75110519,0.00017808,2]
[367632164,1750882248286,-460.0,0.00017808,2]
[367632166,1750882248297,-1280.77,0.00017808,2]
[367632168,1750882248306,-659.25,0.00017808,2]
[367632170,1750882248315,-460.53,0.00017808,2]
[367632172,1750882248325,-500.0,0.00017831,2]
[367632174,1750882248334,-500.0,0.00017835,2]
[367632176,1750882248343,-159.1939926,0.00017836,2]
[367632178,1750882248353,-574.9477627,0.00017836,2]
[367632180,1750882248362,-354.8312648,0.00017836,2]
[367632182,1750882248371,-159.1939926,0.00017836,2]
[367632184,1750882248381,-574.8597778,0.00017836,2]
[367632186,1750882248391,-159.1198356,0.00017836,2]
[367632200,1750882248400,-574.9477627,0.00017836,2]
[367632204,1750882248541,-318.3385472,0.00017836,2]
[367632206,1750882248551,-177.4156324,0.00017836,2]
[367632208,1750882248561,-1149.7195556,0.00017836,2]
[367632210,1750882248571,-177.4156324,0.00017836,2]
[367632212,1750882248580,-318.3385472,0.00017836,2]
[367632214,1750882248590,-574.9477627,0.00017836,2]
[367632216,1750882248599,-151.0,0.00017836,2]
[367632218,1750882248608,-1185.0,0.00017847,2]
[367632219,1750882248618,-506.37154004,0.00017851,2]
[367632220,1750882248627,-1000.0,0.00017851,2]
[367632221,1750882248637,-500.0,0.00017854,2]
[367632222,1750882248646,-500.0,0.00017854,2]
[367632223,1750882248655,-1000.0,0.00017877,2]
[367632224,1750882248665,-500.0,0.00017877,2]
[367632225,1750882248675,-1000.0,0.00017879,2]
[367632226,1750882248684,-1000.0,0.00017879,2]
[367632227,1750882248694,-1000.0,0.00017879,2]
[367632228,1750882248703,-1000.0,0.00017879,2]
[367632229,1750882248713,-1185.0,0.000179,2]
[367632230,1750882248722,-500.0,0.000179,2]
[367632231,1750882248732,-1000.0,0.00017904,2]
[367632232,1750882248741,-500.0,0.00017905,2]
[367632233,1750882248750,-1000.0,0.00017905,2]
[367632234,1750882248759,-1000.0,0.00017905,2]
[367632235,1750882248769,-500.0,0.00017905,2]
[367632236,1750882248779,-881.28953766,0.00017905,2]
[367632237,1750882248788,-500.0,0.00017905,2]
[367632238,1750882248798,-1000.0,0.00017913,2]
[367632239,1750882248807,-177.4156324,0.00017945,2]
[367632240,1750882248816,-177.3826656,0.00017945,2]
[367632241,1750882248825,-354.7653312,0.00017945,2]
[367632242,1750882248834,-574.8597778,0.00017945,2]
[367632243,1750882248843,-1149.7195556,0.00017945,2]
[367632244,1750882248853,-1185.0,0.00017945,2]
[367632245,1750882248862,-1185.0,0.00017951,2]
[367632246,1750882248871,-300.0,0.00017962,2]
[367632247,1750882248881,-420.0,0.00017962,2]
[367632248,1750882248890,-3612.0,0.00018,2]
[367632249,1750882248900,-151.0,0.00018,2]
[367632250,1750882248909,-2983.73685838,0.00018003,2]
[367632251,1750882248918,-1418.67583008,0.00018051,2]
[367632252,1750882248929,-185.0,0.00018071,2]
[367632253,1750882248938,-1185.0,0.00018072,2]
[367632254,1750882248951,-319.68,0.00018072,3]
[367632255,1750882248961,-333.34,0.00018072,3]
[367632256,1750882248970,-151.0,0.0001808,2]
[367632257,1750882248980,-213.541237,0.0001808,2]
[367632258,1750882248990,-213.541237,0.0001808,2]
[367632259,1750882249001,-376.935369,0.0001808,2]
[367632260,1750882249010,-376.935369,0.0001808,2]
[367632261,1750882249019,-151.0,0.00018082,2]
[367632262,1750882249029,-248.285582,0.00018082,2]
[367632263,1750882249039,-151.0,0.00018082,2]
[367632264,1750882249049,-151.0,0.00018082,2]
[367632266,1750882249059,-151.0,0.00018082,2]
[367632268,1750882249069,-151.0,0.00018082,2]
[367632270,1750882249079,-151.0,0.00018082,2]
[367632272,1750882249088,-460.0,0.00018082,2]
[367632274,1750882249097,-460.0,0.00018082,2]
[367632276,1750882249106,-498.77,0.00018082,2]
[367632278,1750882249117,-151.0,0.00018082,2]
[367632280,1750882249127,-151.0,0.00018082,2]
[367632282,1750882249136,-151.0,0.00018082,2]
[367632284,1750882249145,-460.0,0.00018082,2]
[367632286,1750882249154,-151.0,0.00018082,2]
[367632288,1750882249163,-151.0,0.00018082,2]
[367632290,1750882249173,-151.0,0.00018082,2]
[367632292,1750882249183,-151.0,0.00018082,2]
[367632294,1750882249193,-460.0,0.00018082,2]
[367632296,1750882249202,-151.0,0.00018082,2]
[367632298,1750882249211,-151.0,0.00018082,2]
[367632300,1750882249221,-854.92,0.00018082,2]
[367632302,1750882249231,-151.0,0.00018082,2]
[367632304,1750882249240,-151.0,0.00018082,2]
[367632306,1750882249250,-151.0,0.00018082,2]
[367632308,1750882249259,-460.0,0.00018082,2]
[367632310,1750882249268,-460.0,0.00018082,2]
[367632312,1750882249278,-502.0,0.00018082,2]
[367632314,1750882249287,-784.28,0.00018082,2]
[367632316,1750882249297,-1342.04,0.00018082,2]
[367632317,1750882249306,-517.07,0.00018082,2]
[367632318,1750882249316,-460.0,0.00018082,2]
[367632319,1750882249325,-474.78,0.00018082,2]
[367632320,1750882249335,-1652.25,0.00018082,2]
[367632321,1750882249344,-460.0,0.00018082,2]
[367632322,1750882249354,-460.0,0.00018082,2]
[367632323,1750882249363,-460.0,0.00018082,2]
[367632324,1750882249373,-684.68,0.00018082,2]
[367632325,1750882249383,-249.91,0.00018082,2]
[367632326,1750882249392,-460.0,0.00018082,2]
[367632327,1750882249401,-460.0,0.00018082,2]
[367632328,1750882249410,-554.04,0.00018082,2]
[367632329,1750882249420,-1916.09,0.00018082,2]
[367632330,1750882249429,-460.0,0.00018082,2]
[367632331,1750882249438,-460.0,0.00018082,2]
[367632332,1750882249448,-3498.74,0.00018082,2]
[367632333,1750882249457,-151.0,0.00018082,2]
[367632334,1750882249466,-1291.19,0.00018082,2]
[367632335,1750882249475,-460.0,0.00018082,2]
[367632336,1750882249485,-2067.75,0.00018082,2]
[367632337,1750882249494,-811.56,0.00018082,2]
[367632338,1750882249504,-460.0,0.00018082,2]
[367632339,1750882249513,-460.0,0.00018082,2]
[367632340,1750882249522,-2990.44,0.00018082,2]
[367632341,1750882249532,-460.0,0.00018082,2]
[367632342,1750882249542,-460.0,0.00018082,2]
[367632343,1750882249551,-468.95,0.00018082,2]
[367632344,1750882249560,-498.17,0.00018082,2]
[367632345,1750882249569,-460.0,0.00018082,2]
[367632346,1750882249580,-460.0,0.00018082,2]
[367632347,1750882249590,-968.9,0.00018082,2]
[367632348,1750882249599,-460.0,0.00018082,2]
[367632349,1750882249609,-641.34,0.00018082,2]
[367632350,1750882249618,-3230.92,0.00018082,2]
[367632351,1750882249628,-460.0,0.00018082,2]
[367632352,1750882249637,-460.0,0.00018082,2]
[367632353,1750882249647,-487.15,0.00018082,2]
[367632354,1750882249657,-990.9,0.00018082,2]
[367632355,1750882249667,-522.98,0.00018082,2]
[367632356,1750882249676,-151.0,0.00018082,2]
[367632357,1750882249685,-460.0,0.00018082,2]
[367632358,1750882249694,-460.0,0.00018082,2]
[367632359,1750882249703,-151.0,0.00018082,2]
[367632360,1750882249713,-780.85,0.00018082,2]
[367632361,1750882249722,-1462.66,0.00018082,2]
[367632362,1750882249732,-2035.57,0.00018082,2]
[367632363,1750882249742,-460.0,0.00018082,2]
[367632364,1750882249751,-1890.42,0.00018082,2]
[367632365,1750882249760,-261.259654,0.00018082,2]
[367632366,1750882249770,-1607.96,0.00018082,2]
[367632367,1750882249780,-634.23,0.00018082,2]
[367632368,1750882249789,-460.0,0.00018082,2]
[367632369,1750882249798,-1280.77,0.00018082,2]
[367632370,1750882249808,-659.25,0.00018082,2]
[367632371,1750882249817,-460.53,0.00018082,2]
[367632372,1750882249826,-165.9966585,0.00018082,2]
[367632373,1750882249836,-500.0,0.00018099,2]
[367632374,1750882249845,-666.7,0.00018151,3]
[367632375,1750882249854,-1333.38,0.00018161,3]
[367632376,1750882249863,-1147.15339232,0.00018179,2]
[367632377,1750882249873,-2161.0,0.0001818,2]
[367632378,1750882249883,-654.0,0.0001818,2]
[367632379,1750882249893,-637.0,0.00018214,2]
[367632380,1750882249902,-2983.73685838,0.00018279,2]
[367632381,1750882249911,-460.0,0.00018356,2]
[367632382,1750882249921,-460.0,0.00018356,2]
[367632383,1750882249930,-151.0,0.00018356,2]
[367632384,1750882249939,-151.0,0.00018356,2]
[367632385,1750882249949,-498.77,0.00018356,2]
[367632386,1750882249957,-460.0,0.00018356,2]
[367632387,1750882249971,-213.541237,0.00018356,2]
[367632388,1750882249980,-213.541237,0.00018356,2]
[367632389,1750882249989,-376.935369,0.00018356,2]
[367632390,1750882249999,-376.935369,0.00018356,2]
[367632391,1750882250008,-460.0,0.00018356,2]
[367632392,1750882250018,-854.92,0.00018356,2]
[367632393,1750882250027,-460.0,0.00018356,2]
[367632394,1750882250036,-460.0,0.00018356,2]
[367632395,1750882250046,-502.0,0.00018356,2]
[367632396,1750882250055,-784.28,0.00018356,2]
[367632397,1750882250065,-1342.04,0.00018356,2]
[367632398,1750882250077,-460.0,0.00018356,2]
[367632399,1750882250087,-474.78,0.00018356,2]
[367632400,1750882250096,-1652.25,0.00018356,2]
[367632401,1750882250105,-460.0,0.00018356,2]
[367632402,1750882250114,-460.0,0.00018356,2]
[367632403,1750882250125,-460.0,0.00018356,2]
[367632404,1750882250135,-684.68,0.00018356,2]
[367632405,1750882250144,-572.90810327,0.00018356,2]
[367632406,1750882250154,-460.0,0.00018356,2]
[367632407,1750882250164,-554.04,0.00018356,2]
[367632408,1750882250174,-1916.09,0.00018356,2]
[367632409,1750882250183,-460.0,0.00018356,2]
[367632410,1750882250193,-460.0,0.00018356,2]
[367632411,1750882250202,-3498.74,0.00018356,2]
[367632412,1750882250211,-1291.19,0.00018356,2]
[367632413,1750882250220,-460.0,0.00018356,2]
[367632414,1750882250229,-2067.75,0.00018356,2]
[367632415,1750882250238,-811.56,0.00018356,2]
[367632416,1750882250247,-460.0,0.00018356,2]
[367632417,1750882250256,-460.0,0.00018356,2]
[367632419,1750882250266,-2990.44,0.00018356,2]
[367632421,1750882250275,-460.0,0.00018356,2]
[367632423,1750882250284,-460.0,0.00018356,2]
[367632424,1750882250293,-468.95,0.00018356,2]
[367632426,1750882250302,-498.17,0.00018356,2]
[367632427,1750882250311,-163.27,0.00018356,2]
[367632428,1750882250321,-362.83,0.00018356,2]
[367632429,1750882250330,-968.9,0.00018356,2]
[367632430,1750882250339,-460.0,0.00018356,2]
[367632431,1750882250349,-641.34,0.00018356,2]
[367632432,1750882250358,-3230.92,0.00018356,2]
[367632434,1750882250367,-460.0,0.00018356,2]
[367632435,1750882250377,-460.0,0.00018356,2]
[367632437,1750882250386,-990.9,0.00018356,2]
[367632438,1750882250395,-522.98,0.00018356,2]
[367632440,1750882250405,-460.0,0.00018356,2]
[367632442,1750882250414,-365.82591311,0.00018356,2]
[367632444,1750882250423,-780.85,0.00018356,2]
[367632445,1750882250432,-1462.66,0.00018356,2]
[367632446,1750882250442,-2035.57,0.00018356,2]
[367632447,1750882250451,-460.0,0.00018356,2]
[367632448,1750882250461,-1890.42,0.00018356,2]
[367632449,1750882250470,-1607.96,0.00018356,2]
[367632450,1750882250479,-634.23,0.00018356,2]
[367632451,1750882250489,-460.0,0.00018356,2]
[367632452,1750882250498,-1280.77,0.00018356,2]
[367632453,1750882250508,-659.25,0.00018356,2]
[367632454,1750882250517,-460.53,0.00018356,2]
[367632455,1750882250526,-1000.0,0.00018379,2]
[367632456,1750882250535,-151.0,0.00018379,2]
[367632457,1750882250545,-151.0,0.00018379,2]
[367632458,1750882250554,-151.0,0.00018383,2]
[367632459,1750882250563,-151.0,0.00018383,2]
[367632460,1750882250572,-800.0,0.00018404,2]
[367632461,1750882250582,-1500.0,0.00018427,2]
[367632462,1750882250591,-1500.0,0.00018427,2]
[367632463,1750882250601,-1500.0,0.00018452,2]
[367632464,1750882250610,-1500.0,0.00018453,2]
[367632465,1750882250620,-500.0,0.00018453,2]
[367632466,1750882250630,-151.0,0.00018461,2]
[367632467,1750882250639,-151.0,0.00018461,2]
[367632468,1750882250648,-1500.0,0.00018461,2]
[367632469,1750882250657,-152.636,0.00018473,2]
[367632470,1750882250667,-242.589,0.00018473,2]
[367632471,1750882250677,-200.225,0.00018473,2]
[367632472,1750882250686,-965.0,0.00018473,2]
[367632473,1750882250696,-1418.67583008,0.0001853,2]
[367632474,1750882250707,-500.0,0.00018538,2]
[367632475,1750882250716,-226.945,0.00018555,2]
[367632476,1750882250725,-2983.73685838,0.00018555,2]
[367632477,1750882250734,-800.0,0.0001862,2]
[367632478,1750882250743,-215.0738,0.00018621,2]
[367632479,1750882250752,-272.584778,0.00018629,2]
[367632480,1750882250761,-151.0,0.00018629,2]
[367632481,1750882250770,-151.0,0.00018629,2]
[367632482,1750882250780,-151.0,0.00018629,2]
[367632483,1750882250790,-151.0,0.00018629,2]
[367632484,1750882250801,-151.0,0.00018629,2]
[367632485,1750882250810,-151.0,0.0001863,2]
[367632486,1750882250820,-460.0,0.0001863,2]
[367632487,1750882250829,-460.0,0.0001863,2]
[367632488,1750882250839,-151.0,0.0001863,2]
[367632489,1750882250848,-498.77,0.0001863,2]
[367632490,1750882250858,-267.358973,0.0001863,2]
[367632491,1750882250867,-151.0,0.0001863,2]
[367632492,1750882250876,-460.0,0.0001863,2]
[367632494,1750882250886,-460.0,0.0001863,2]
[367632496,1750882250895,-854.92,0.0001863,2]
[367632497,1750882250904,-460.0,0.0001863,2]
[367632499,1750882250913,-460.0,0.0001863,2]
[367632501,1750882250922,-502.0,0.0001863,2]
[367632503,1750882250933,-784.28,0.0001863,2]
[367632505,1750882250942,-1342.04,0.0001863,2]
[367632507,1750882250950,-460.0,0.0001863,2]
[367632509,1750882250960,-474.78,0.0001863,2]
[367632511,1750882250972,-1652.25,0.0001863,2]
[367632513,1750882250981,-460.0,0.0001863,2]
[367632515,1750882250991,-460.0,0.0001863,2]
[367632517,1750882251000,-460.0,0.0001863,2]
[367632519,1750882251009,-684.68,0.0001863,2]
[367632521,1750882251019,-460.0,0.0001863,2]
[367632523,1750882251028,-554.04,0.0001863,2]
[367632525,1750882251037,-1916.09,0.0001863,2]
[367632527,1750882251046,-460.0,0.0001863,2]
[367632529,1750882251055,-460.0,0.0001863,2]
[367632531,1750882251064,-3498.74,0.0001863,2]
[367632533,1750882251073,-1291.19,0.0001863,2]
[367632535,1750882251082,-460.0,0.0001863,2]
[367632536,1750882251091,-2067.75,0.0001863,2]
[367632538,1750882251100,-811.56,0.0001863,2]
[367632540,1750882251109,-460.0,0.0001863,2]
[367632542,1750882251119,-460.0,0.0001863,2]
[367632544,1750882251128,-2990.44,0.0001863,2]
[367632546,1750882251137,-460.0,0.0001863,2]
[367632548,1750882251146,-460.0,0.0001863,2]
[367632550,1750882251155,-468.95,0.0001863,2]
[367632552,1750882251164,-498.17,0.0001863,2]
[367632554,1750882251173,-968.9,0.0001863,2]
[367632556,1750882251183,-460.0,0.0001863,2]
[367632558,1750882251192,-641.34,0.0001863,2]
[367632560,1750882251201,-3230.92,0.0001863,2]
[367632562,1750882251210,-460.0,0.0001863,2]
[367632564,1750882251220,-460.0,0.0001863,2]
[367632566,1750882251229,-990.9,0.0001863,2]
[367632568,1750882251238,-522.98,0.0001863,2]
[367632570,1750882251247,-460.0,0.0001863,2]
[367632572,1750882251256,-780.85,0.0001863,2]
[367632574,1750882251265,-2035.57,0.0001863,2]
[367632576,1750882251274,-1462.66,0.0001863,2]
[367632578,1750882251283,-460.0,0.0001863,2]
[367632580,1750882251292,-1890.42,0.0001863,2]
[367632582,1750882251301,-1607.96,0.0001863,2]
[367632584,1750882251310,-634.23,0.0001863,2]
[367632586,1750882251319,-460.0,0.0001863,2]
[367632588,1750882251328,-1280.77,0.0001863,2]
[367632590,1750882251336,-659.25,0.0001863,2]
[367632592,1750882251346,-318.3385472,0.00018658,2]
[367632593,1750882251355,-1087.8352077,0.00018658,2]
[367632595,1750882251364,-177.4156324,0.00018658,2]
[367632597,1750882251374,-574.9477627,0.00018658,2]
[367632599,1750882251383,-732.0170874,0.00018685,2]
[367632601,1750882251393,-2983.73685838,0.00018831,2]
[367632603,1750882251402,-731.0438763,0.0001886,2]
[367632605,1750882251411,-151.0,0.000189,2]
[367632607,1750882251420,-248.744204,0.000189,2]
[367632609,1750882251429,-151.0,0.000189,2]
[367632611,1750882251438,-237.561723,0.000189,2]
[367632613,1750882251447,-7471.16801491,0.000189,2]
[367632615,1750882251456,-162.280721,0.00018904,2]
[367632617,1750882251465,-151.0,0.00018904,2]
[367632619,1750882251474,-151.0,0.00018904,2]
[367632621,1750882251483,-151.0,0.00018904,2]
[367632623,1750882251492,-460.0,0.00018904,2]
[367632625,1750882251501,-460.0,0.00018904,2]